Publisher Label,Publisher URI,"Organisational Unit","Beneficiary Name","Payment Date","Amount (£)","Irrecoverable VAT Amount (£)","Purpose","Merchant Category Code"
"Wolverhampton City Council","http://opendatacommunities.org/id/metropolitan-district-council/wolverhampton","Governance","Sainsburys","08/03/16","32.20","0.00","Subsistence","5411"
"Wolverhampton City Council","http://opendatacommunities.org/id/metropolitan-district-council/wolverhampton","Governance","Greggs","08/03/16","62.50","0.00","Subsistence","5812"
"Wolverhampton City Council","http://opendatacommunities.org/id/metropolitan-district-council/wolverhampton","Governance","1&1 Internet Limited","18/05/16","53.50","0.00","Computing - Internet","4816"
"Wolverhampton City Council","http://opendatacommunities.org/id/metropolitan-district-council/wolverhampton","Governance","Sainsburys","23/03/16","33.90","0.00","Subsistence","5411"
"Wolverhampton City Council","http://opendatacommunities.org/id/metropolitan-district-council/wolverhampton","Governance","Greggs","24/03/16","83.60","0.00","Subsistence","5812"
"Wolverhampton City Council","http://opendatacommunities.org/id/metropolitan-district-council/wolverhampton","Finance","Argos","29/03/16","17.45","0.00","Equipment - Purchase","5311"
"Wolverhampton City Council","http://opendatacommunities.org/id/metropolitan-district-council/wolverhampton","Finance","Argos Ltd","07/03/16","29.37","0.00","Equipment - Purchase","5311"
"Wolverhampton City Council","http://opendatacommunities.org/id/metropolitan-district-council/wolverhampton","Executive","Autogrill","26/04/16","7.35","0.00","Subsistence","5812"
"Wolverhampton City Council","http://opendatacommunities.org/id/metropolitan-district-council/wolverhampton","Executive","Burger King","20/03/16","15.27","0.00","Subsistence","5812"
"Wolverhampton City Council","http://opendatacommunities.org/id/metropolitan-district-council/wolverhampton","Finance","Benugo","10/05/16","6.17","0.00","Subsistence","5812"
"Wolverhampton City Council","http://opendatacommunities.org/id/metropolitan-district-council/wolverhampton","Governance","BHS","09/03/16","1.50","0.00","Subsistence","5311"
"Wolverhampton City Council","http://opendatacommunities.org/id/metropolitan-district-council/wolverhampton","Executive","McDonalds","23/03/16","7.98","0.00","Subsistence","5812"
"Wolverhampton City Council","http://opendatacommunities.org/id/metropolitan-district-council/wolverhampton","Governance","ISSUU","27/03/16","13.86","0.00","Computing - Internet","4816"
"Wolverhampton City Council","http://opendatacommunities.org/id/metropolitan-district-council/wolverhampton","Pensions Operations","LUL Ticket Machine","21/03/16","4.90","0.00","Public transport","4112"
"Wolverhampton City Council","http://opendatacommunities.org/id/metropolitan-district-council/wolverhampton","Pensions Operations","Costa Coffee","21/03/16","2.46","0.00","Subsistence","5813"
"Wolverhampton City Council","http://opendatacommunities.org/id/metropolitan-district-council/wolverhampton","Pensions Operations","Costa Coffee","21/03/16","1.55","0.00","Subsistence","5813"
"Wolverhampton City Council","http://opendatacommunities.org/id/metropolitan-district-council/wolverhampton","Pensions Operations","LUL Ticket Machine","22/03/16","4.90","0.00","Public transport","4112"
"Wolverhampton City Council","http://opendatacommunities.org/id/metropolitan-district-council/wolverhampton","Investments","Greggs","04/03/16","23.00","0.00","Subsistence","5812"
"Wolverhampton City Council","http://opendatacommunities.org/id/metropolitan-district-council/wolverhampton","Investments","BHS","04/03/16","2.35","0.00","Subsistence","5311"
"Wolverhampton City Council","http://opendatacommunities.org/id/metropolitan-district-council/wolverhampton","Investments","West Coast Trains","09/03/16","3.29","0.00","Subsistence","4112"
"Wolverhampton City Council","http://opendatacommunities.org/id/metropolitan-district-council/wolverhampton","Investments","LUL Ticket Machine","09/03/16","50.00","0.00","Public transport","4112"
"Wolverhampton City Council","http://opendatacommunities.org/id/metropolitan-district-council/wolverhampton","Investments","West Coast Trains","09/03/16","7.50","0.00","Parking fees","4112"
"Wolverhampton City Council","http://opendatacommunities.org/id/metropolitan-district-council/wolverhampton","Investments","West Coast Trains","09/03/16","1.67","0.00","Subsistence","4112"
"Wolverhampton City Council","http://opendatacommunities.org/id/metropolitan-district-council/wolverhampton","Investments","West Coast Trains","09/03/16","1.60","0.00","Subsistence","4112"
"Wolverhampton City Council","http://opendatacommunities.org/id/metropolitan-district-council/wolverhampton","Investments","Sainsburys","20/03/16","10.80","0.00","Subsistence","5411"
"Wolverhampton City Council","http://opendatacommunities.org/id/metropolitan-district-council/wolverhampton","Investments","Starbucks","20/03/16","23.25","0.00","Subsistence","5812"
"Wolverhampton City Council","http://opendatacommunities.org/id/metropolitan-district-council/wolverhampton","Governance","BHS","14/03/16","6.96","0.00","Subsistence","5311"
"Wolverhampton City Council","http://opendatacommunities.org/id/metropolitan-district-council/wolverhampton","Governance","BHS","18/04/16","4.00","0.00","Subsistence","5311"
"Wolverhampton City Council","http://opendatacommunities.org/id/metropolitan-district-council/wolverhampton","Governance","BHS","09/05/16","6.47","0.00","Subsistence","5311"
"Wolverhampton City Council","http://opendatacommunities.org/id/metropolitan-district-council/wolverhampton","Finance","Virgintrains.co.uk","04/03/16","227.65","0.00","Public transport","4112"
"Wolverhampton City Council","http://opendatacommunities.org/id/metropolitan-district-council/wolverhampton","Finance","Virgintrains.co.uk","07/03/16","26.40","0.00","Public transport","4112"
"Wolverhampton City Council","http://opendatacommunities.org/id/metropolitan-district-council/wolverhampton","Finance","Virgintrains.co.uk","07/03/16","50.40","0.00","Public transport","4112"
"Wolverhampton City Council","http://opendatacommunities.org/id/metropolitan-district-council/wolverhampton","Finance","Virgintrains.co.uk","07/03/16","179.00","0.00","Public transport","4112"
"Wolverhampton City Council","http://opendatacommunities.org/id/metropolitan-district-council/wolverhampton","Governance","Fullersh006sanctuaryhs","26/05/16","161.67","0.00","Accommodation costs","7011"
"Wolverhampton City Council","http://opendatacommunities.org/id/metropolitan-district-council/wolverhampton","Finance","Virgintrains.co.uk","09/03/16","14.10","0.00","Public transport","4112"
"Wolverhampton City Council","http://opendatacommunities.org/id/metropolitan-district-council/wolverhampton","Finance","GRO HM PASSPORT OFFICE SOUTHPORT","10/03/16","64.75","0.00","Publications","9399"
"Wolverhampton City Council","http://opendatacommunities.org/id/metropolitan-district-council/wolverhampton","Finance","Virgintrains.co.uk","10/03/16","110.00","0.00","Public transport","4112"
"Wolverhampton City Council","http://opendatacommunities.org/id/metropolitan-district-council/wolverhampton","Finance","GRO HM PASSPORT OFFICE SOUTHPORT","18/02/16","(9.25)","0.00","Publications","9399"
"Wolverhampton City Council","http://opendatacommunities.org/id/metropolitan-district-council/wolverhampton","Finance","GRO HM PASSPORT OFFICE SOUTHPORT","19/02/16","(9.25)","0.00","Publications","9399"
"Wolverhampton City Council","http://opendatacommunities.org/id/metropolitan-district-council/wolverhampton","Finance","GRO HM PASSPORT OFFICE SOUTHPORT","19/02/16","(9.25)","0.00","Publications","9399"
"Wolverhampton City Council","http://opendatacommunities.org/id/metropolitan-district-council/wolverhampton","Finance","GRO HM PASSPORT OFFICE SOUTHPORT","19/02/16","(9.25)","0.00","Publications","9399"
"Wolverhampton City Council","http://opendatacommunities.org/id/metropolitan-district-council/wolverhampton","Finance","GRO HM PASSPORT OFFICE SOUTHPORT","19/02/16","(18.50)","0.00","Publications","9399"
"Wolverhampton City Council","http://opendatacommunities.org/id/metropolitan-district-council/wolverhampton","Governance","Grange St Pauls Hotel","30/03/16","286.67","0.00","Accommodation costs","7011"
"Wolverhampton City Council","http://opendatacommunities.org/id/metropolitan-district-council/wolverhampton","Finance","GRO HM PASSPORT OFFICE SOUTHPORT","19/02/16","(9.25)","0.00","Publications","9399"
"Wolverhampton City Council","http://opendatacommunities.org/id/metropolitan-district-council/wolverhampton","Finance","Grange St Pauls Hotel","28/04/16","179.00","0.00","Accommodation costs","7011"
"Wolverhampton City Council","http://opendatacommunities.org/id/metropolitan-district-council/wolverhampton","Finance","Office Stationers","18/03/16","5.97","0.00","Stationery","5943"
"Wolverhampton City Council","http://opendatacommunities.org/id/metropolitan-district-council/wolverhampton","Finance","Ryman","18/03/16","6.99","0.00","Stationery","5943"
"Wolverhampton City Council","http://opendatacommunities.org/id/metropolitan-district-council/wolverhampton","Governance","Greggs","14/03/16","23.00","0.00","Subsistence","5812"
"Wolverhampton City Council","http://opendatacommunities.org/id/metropolitan-district-council/wolverhampton","Pensions Operations","Indigo Park Sol UK-LON internet","20/04/16","7.10","0.00","Parking fees","7523"
"Wolverhampton City Council","http://opendatacommunities.org/id/metropolitan-district-council/wolverhampton","Investments","Itunes","05/03/16","3.99","0.00","Subscriptions","5735"
"Wolverhampton City Council","http://opendatacommunities.org/id/metropolitan-district-council/wolverhampton","Governance","Kensington  Close Hotel London","20/04/16","101.67","0.00","Accommodation costs","7011"
"Wolverhampton City Council","http://opendatacommunities.org/id/metropolitan-district-council/wolverhampton","Investments","Travelodge","09/03/16","75.83","0.00","Accommodation costs","7011"
"Wolverhampton City Council","http://opendatacommunities.org/id/metropolitan-district-council/wolverhampton","Governance","Kensington  Close Hotel London","20/04/16","12.00","0.00","Subsistence","7011"
"Wolverhampton City Council","http://opendatacommunities.org/id/metropolitan-district-council/wolverhampton","Investments","LUL Ticket Machine","16/03/16","30.00","0.00","Public transport","4112"
"Wolverhampton City Council","http://opendatacommunities.org/id/metropolitan-district-council/wolverhampton","Investments","KFC Beaconsfield","23/03/16","18.52","0.00","Subsistence","5814"
"Wolverhampton City Council","http://opendatacommunities.org/id/metropolitan-district-council/wolverhampton","Governance","Financial Times LTD London","25/04/16","520.00","0.00","Subscriptions","5192"
"Wolverhampton City Council","http://opendatacommunities.org/id/metropolitan-district-council/wolverhampton","Governance","Financial Times LTD London","25/04/16","520.00","0.00","Subscriptions","5192"
"Wolverhampton City Council","http://opendatacommunities.org/id/metropolitan-district-council/wolverhampton","Governance","ISSUU","27/04/16","13.38","0.00","Computing - Internet","4816"
"Wolverhampton City Council","http://opendatacommunities.org/id/metropolitan-district-council/wolverhampton","Executive","Taylor St Baristas","06/04/16","5.05","0.00","Subsistence","5813"
"Wolverhampton City Council","http://opendatacommunities.org/id/metropolitan-district-council/wolverhampton","Executive","Costa Coffee","11/04/16","6.79","0.00","Subsistence","5813"
"Wolverhampton City Council","http://opendatacommunities.org/id/metropolitan-district-council/wolverhampton","Executive","Costa Coffee","11/04/16","2.74","0.00","Subsistence","5813"
"Wolverhampton City Council","http://opendatacommunities.org/id/metropolitan-district-council/wolverhampton","Executive","LUL Ticket Machine","11/04/16","50.00","0.00","Public transport","4112"
"Wolverhampton City Council","http://opendatacommunities.org/id/metropolitan-district-council/wolverhampton","Investments","Lastminute.com","11/05/16","149.00","0.00","Accommodation costs","7011"
"Wolverhampton City Council","http://opendatacommunities.org/id/metropolitan-district-council/wolverhampton","Executive","DDF Barrierline","20/04/16","6.38","0.00","Subsistence","5812"
"Wolverhampton City Council","http://opendatacommunities.org/id/metropolitan-district-council/wolverhampton","Executive","McDonalds","20/04/16","3.16","0.00","Subsistence","5812"
"Wolverhampton City Council","http://opendatacommunities.org/id/metropolitan-district-council/wolverhampton","Executive","Leafi LTD","19/04/16","10.63","0.00","Subsistence","5812"
"Wolverhampton City Council","http://opendatacommunities.org/id/metropolitan-district-council/wolverhampton","Executive","Caffe Nero","27/04/16","6.88","0.00","Subsistence","5812"
"Wolverhampton City Council","http://opendatacommunities.org/id/metropolitan-district-council/wolverhampton","Governance","Linked in Dublin","13/04/16","189.95","0.00","Subscriptions","8999"
"Wolverhampton City Council","http://opendatacommunities.org/id/metropolitan-district-council/wolverhampton","Investments","Nikkei Inc Kong Kong","13/04/16","100.11","0.00","Subscriptions","8999"
"Wolverhampton City Council","http://opendatacommunities.org/id/metropolitan-district-council/wolverhampton","Investments","Virgintrains.co.uk","18/04/16","116.55","0.00","Public transport","4112"
"Wolverhampton City Council","http://opendatacommunities.org/id/metropolitan-district-council/wolverhampton","Investments","West Coast Trains","19/04/16","11.67","0.00","Parking fees","4112"
"Wolverhampton City Council","http://opendatacommunities.org/id/metropolitan-district-council/wolverhampton","Investments","West coast Trains","26/04/16","3.38","0.00","Subsistence","4112"
"Wolverhampton City Council","http://opendatacommunities.org/id/metropolitan-district-council/wolverhampton","Investments","West Coast Trains","26/04/16","7.50","0.00","Parking fees","4112"
"Wolverhampton City Council","http://opendatacommunities.org/id/metropolitan-district-council/wolverhampton","Investments","Gourmet Coffee bar","21/04/16","6.40","0.00","Subsistence","5812"
"Wolverhampton City Council","http://opendatacommunities.org/id/metropolitan-district-council/wolverhampton","Investments","West Coast Trains","21/04/16","41.60","0.00","Public transport","4112"
"Wolverhampton City Council","http://opendatacommunities.org/id/metropolitan-district-council/wolverhampton","Investments","West Coast Trains","21/04/16","7.50","0.00","Parking fees","4112"
"Wolverhampton City Council","http://opendatacommunities.org/id/metropolitan-district-council/wolverhampton","Investments","Patisserie Valerie","23/03/15","12.25","0.00","Subsistence","5812"
"Wolverhampton City Council","http://opendatacommunities.org/id/metropolitan-district-council/wolverhampton","Governance","Ryman","27/04/16","40.77","0.00","Stationery","5943"
"Wolverhampton City Council","http://opendatacommunities.org/id/metropolitan-district-council/wolverhampton","Governance","Greggs","28/04/16","37.00","0.00","Subsistence","5812"
"Wolverhampton City Council","http://opendatacommunities.org/id/metropolitan-district-council/wolverhampton","Governance","Sainsburys","14/04/16","12.66","0.00","Subsistence","5411"
"Wolverhampton City Council","http://opendatacommunities.org/id/metropolitan-district-council/wolverhampton","Governance","Greggs","15/04/16","72.20","0.00","Subsistence","5812"
"Wolverhampton City Council","http://opendatacommunities.org/id/metropolitan-district-council/wolverhampton","Governance","Greggs","18/04/16","37.00","0.00","Subsistence","5812"
"Wolverhampton City Council","http://opendatacommunities.org/id/metropolitan-district-council/wolverhampton","Executive","Paul UK","28/04/16","1.50","0.00","Subsistence","5812"
"Wolverhampton City Council","http://opendatacommunities.org/id/metropolitan-district-council/wolverhampton","Governance","Sainsburys","20/04/16","6.25","0.00","Subsistence","5411"
"Wolverhampton City Council","http://opendatacommunities.org/id/metropolitan-district-council/wolverhampton","Executive","Paul UK","28/04/16","5.25","0.00","Subsistence","5812"
"Wolverhampton City Council","http://opendatacommunities.org/id/metropolitan-district-council/wolverhampton","Investments","Pizza Express","14/03/16","16.05","0.00","Subsistence","5812"
"Wolverhampton City Council","http://opendatacommunities.org/id/metropolitan-district-council/wolverhampton","Governance","PLAZA Chauffeur Cars London","21/03/16","96.80","0.00","Accommodation costs","4121"
"Wolverhampton City Council","http://opendatacommunities.org/id/metropolitan-district-council/wolverhampton","Governance","Greggs","21/04/16","55.80","0.00","Subsistence","5812"
"Wolverhampton City Council","http://opendatacommunities.org/id/metropolitan-district-council/wolverhampton","Governance","Poundland","24/03/16","4.17","0.00","Equipment - Purchase","5310"
"Wolverhampton City Council","http://opendatacommunities.org/id/metropolitan-district-council/wolverhampton","Governance","Poundland","24/03/16","4.17","0.00","Equipment - Purchase","5310"
"Wolverhampton City Council","http://opendatacommunities.org/id/metropolitan-district-council/wolverhampton","Governance","Poundworld","20/04/16","1.67","0.00","Subsistence","5310"
"Wolverhampton City Council","http://opendatacommunities.org/id/metropolitan-district-council/wolverhampton","Governance","Sainsburys","27/04/16","42.85","0.00","Subsistence","5411"
"Wolverhampton City Council","http://opendatacommunities.org/id/metropolitan-district-council/wolverhampton","Governance","Ryman","27/04/16","4.99","0.00","Stationery","5943"
"Wolverhampton City Council","http://opendatacommunities.org/id/metropolitan-district-council/wolverhampton","Governance","Greggs","29/02/16","72.10","0.00","Subsistence","5812"
"Wolverhampton City Council","http://opendatacommunities.org/id/metropolitan-district-council/wolverhampton","Investments","Sweet Shop","12/04/16","55.50","0.00","Public Transport","4112"
"Wolverhampton City Council","http://opendatacommunities.org/id/metropolitan-district-council/wolverhampton","Governance","Poundworld","20/04/16","4.17","0.00","Equipment - Purchase","5310"
"Wolverhampton City Council","http://opendatacommunities.org/id/metropolitan-district-council/wolverhampton","Investments","Financial Times London","15/04/16","113.05","0.00","Subscriptions","5192"
"Wolverhampton City Council","http://opendatacommunities.org/id/metropolitan-district-council/wolverhampton","Finance","Virgintrains.co.uk","04/04/16","179.00","0.00","Public Transport","4112"
"Wolverhampton City Council","http://opendatacommunities.org/id/metropolitan-district-council/wolverhampton","Finance","GRO HM Passport Office Southport","10/03/16","(9.25)","0.00","Publications","9399"
"Wolverhampton City Council","http://opendatacommunities.org/id/metropolitan-district-council/wolverhampton","Finance","West Coast Trains","06/04/16","132.00","0.00","Public Transport","4112"
"Wolverhampton City Council","http://opendatacommunities.org/id/metropolitan-district-council/wolverhampton","Finance","GRO HM Passport Office Southport","08/04/16","9.25","0.00","Publications","9399"
"Wolverhampton City Council","http://opendatacommunities.org/id/metropolitan-district-council/wolverhampton","Finance","West Coast Trains","08/04/16","179.00","0.00","Public Transport","4112"
"Wolverhampton City Council","http://opendatacommunities.org/id/metropolitan-district-council/wolverhampton","Finance","Virgintrains.co.uk","13/04/16","179.00","0.00","Public Transport","4112"
"Wolverhampton City Council","http://opendatacommunities.org/id/metropolitan-district-council/wolverhampton","Finance","Virgintrains.co.uk","13/04/16","(169.00)","0.00","Public Transport","4112"
"Wolverhampton City Council","http://opendatacommunities.org/id/metropolitan-district-council/wolverhampton","Finance","Amazon","14/04/16","18.73","0.00","Equipment - Purchase","5942"
"Wolverhampton City Council","http://opendatacommunities.org/id/metropolitan-district-council/wolverhampton","Governance","Poundworld","20/04/16","1.00","0.00","Subsistence","5310"
"Wolverhampton City Council","http://opendatacommunities.org/id/metropolitan-district-council/wolverhampton","Finance","Virgintrains.co.uk","19/04/16","122.90","0.00","Public Transport","4112"
"Wolverhampton City Council","http://opendatacommunities.org/id/metropolitan-district-council/wolverhampton","Finance","Virgintrains.co.uk","19/04/16","244.80","0.00","Public Transport","4112"
"Wolverhampton City Council","http://opendatacommunities.org/id/metropolitan-district-council/wolverhampton","Governance","Poundworld","22/04/16","8.00","0.00","Equipment - Purchase","5310"
"Wolverhampton City Council","http://opendatacommunities.org/id/metropolitan-district-council/wolverhampton","Finance","Virgintrains.co.uk","20/04/16","179.00","0.00","Public Transport","4112"
"Wolverhampton City Council","http://opendatacommunities.org/id/metropolitan-district-council/wolverhampton","Finance","Post Office Counter","21/04/16","6.00","0.00","Subscriptions","9402"
"Wolverhampton City Council","http://opendatacommunities.org/id/metropolitan-district-council/wolverhampton","Finance","Virgintrains.co.uk","25/04/16","67.00","0.00","Public Transport","4112"
"Wolverhampton City Council","http://opendatacommunities.org/id/metropolitan-district-council/wolverhampton","Finance","Virgintrains.co.uk","25/04/16","89.50","0.00","Public Transport","4112"
"Wolverhampton City Council","http://opendatacommunities.org/id/metropolitan-district-council/wolverhampton","Finance","Virgintrains.co.uk","25/04/16","283.00","0.00","Public Transport","4112"
"Wolverhampton City Council","http://opendatacommunities.org/id/metropolitan-district-council/wolverhampton","Finance","Virgintrains.co.uk","25/04/16","179.00","0.00","Public Transport","4112"
"Wolverhampton City Council","http://opendatacommunities.org/id/metropolitan-district-council/wolverhampton","Finance","Virgintrains.co.uk","25/04/16","190.00","0.00","Public Transport","4112"
"Wolverhampton City Council","http://opendatacommunities.org/id/metropolitan-district-council/wolverhampton","Finance","Virgintrains.co.uk","25/04/16","179.00","0.00","Public Transport","4112"
"Wolverhampton City Council","http://opendatacommunities.org/id/metropolitan-district-council/wolverhampton","Finance","Virgintrains.co.uk","25/04/16","116.55","0.00","Public Transport","4112"
"Wolverhampton City Council","http://opendatacommunities.org/id/metropolitan-district-council/wolverhampton","Finance","West Coast Trains","25/04/16","(89.50)","0.00","Public Transport","4112"
"Wolverhampton City Council","http://opendatacommunities.org/id/metropolitan-district-council/wolverhampton","Finance","Virgintrains.co.uk","26/04/16","(169.00)","0.00","Public Transport","4112"
"Wolverhampton City Council","http://opendatacommunities.org/id/metropolitan-district-council/wolverhampton","Finance","Amazon","27/04/16","5.85","0.00","Equipment - Purchase","5942"
"Wolverhampton City Council","http://opendatacommunities.org/id/metropolitan-district-council/wolverhampton","Finance","Premier Inn London","26/04/15","325.00","0.00","Accommodation costs","7011"
"Wolverhampton City Council","http://opendatacommunities.org/id/metropolitan-district-council/wolverhampton","Finance","Amazon","28/04/16","15.50","0.00","Equipment - Purchase","5942"
"Wolverhampton City Council","http://opendatacommunities.org/id/metropolitan-district-council/wolverhampton","Finance","Virgintrains.co.uk","28/04/16","121.00","0.00","Public Transport","4112"
"Wolverhampton City Council","http://opendatacommunities.org/id/metropolitan-district-council/wolverhampton","Finance","Virgintrains.co.uk","28/04/16","47.55","0.00","Public Transport","4112"
"Wolverhampton City Council","http://opendatacommunities.org/id/metropolitan-district-council/wolverhampton","Governance","Poundworld","05/05/16","2.50","0.00","Equipment - Purchase","5310"
"Wolverhampton City Council","http://opendatacommunities.org/id/metropolitan-district-council/wolverhampton","Finance","Registrars Office Wolverhampton","17/03/16","7.00","0.00","Publications","9399"
"Wolverhampton City Council","http://opendatacommunities.org/id/metropolitan-district-council/wolverhampton","Pensions Operations","XC Trains Ltd","21/04/16","3.30","0.00","Subsistence","4112"
"Wolverhampton City Council","http://opendatacommunities.org/id/metropolitan-district-council/wolverhampton","Pensions Operations","Caffe Nero","27/04/16","6.55","0.00","Subsistence","5812"
"Wolverhampton City Council","http://opendatacommunities.org/id/metropolitan-district-council/wolverhampton","Investments","West Coast Trains","14/04/16","7.50","0.00","Public Transport","4112"
"Wolverhampton City Council","http://opendatacommunities.org/id/metropolitan-district-council/wolverhampton","Investments","Pumpkin Caf�","11/05/16","3.95","0.00","Subsistence","5812"
"Wolverhampton City Council","http://opendatacommunities.org/id/metropolitan-district-council/wolverhampton","Investments","West Coast Trains","12/05/16","15.00","0.00","Parking fees","4112"
"Wolverhampton City Council","http://opendatacommunities.org/id/metropolitan-district-council/wolverhampton","Governance","LUL Ticket Machine","04/05/16","9.80","0.00","Public transport","4112"
"Wolverhampton City Council","http://opendatacommunities.org/id/metropolitan-district-council/wolverhampton","Governance","West Coast Trains","04/05/16","7.50","0.00","Parking fees","4112"
"Wolverhampton City Council","http://opendatacommunities.org/id/metropolitan-district-council/wolverhampton","Governance","Amazon","06/05/16","85.33","0.00","Equipment - Purchase","5942"
"Wolverhampton City Council","http://opendatacommunities.org/id/metropolitan-district-council/wolverhampton","Investments","West Coast Trains","09/05/16","7.50","0.00","Parking fees","4112"
"Wolverhampton City Council","http://opendatacommunities.org/id/metropolitan-district-council/wolverhampton","Finance","Stone Hall","14/03/16","12.00","0.00","Publications","8999"
"Wolverhampton City Council","http://opendatacommunities.org/id/metropolitan-district-council/wolverhampton","Investments","Strada London","20/03/16","251.57","0.00","Subsistence","5812"
"Wolverhampton City Council","http://opendatacommunities.org/id/metropolitan-district-council/wolverhampton","Investments","West Coast Trains","13/05/16","15.00","0.00","Parking fees","4112"
"Wolverhampton City Council","http://opendatacommunities.org/id/metropolitan-district-council/wolverhampton","Investments","Gourmet Coffee Bar","25/05/16","11.15","0.00","Subsistence","5812"
"Wolverhampton City Council","http://opendatacommunities.org/id/metropolitan-district-council/wolverhampton","Investments","West Coast Trains","25/05/16","26.70","0.00","Public transport","4112"
"Wolverhampton City Council","http://opendatacommunities.org/id/metropolitan-district-council/wolverhampton","Executive","Caffe Nero","11/05/16","4.71","0.00","Subsistence","5812"
"Wolverhampton City Council","http://opendatacommunities.org/id/metropolitan-district-council/wolverhampton","Executive","Caffe Nero","18/05/16","3.58","0.00","Subsistence","5812"
"Wolverhampton City Council","http://opendatacommunities.org/id/metropolitan-district-council/wolverhampton","Executive","Caffe Nero","18/05/16","3.63","0.00","Subsistence","5812"
"Wolverhampton City Council","http://opendatacommunities.org/id/metropolitan-district-council/wolverhampton","Executive","Costa Coffee","18/05/16","3.42","0.00","Subsistence","5813"
"Wolverhampton City Council","http://opendatacommunities.org/id/metropolitan-district-council/wolverhampton","Investments","Virgintrains.co.uk","09/05/16","54.10","0.00","Public transport","4112"
"Wolverhampton City Council","http://opendatacommunities.org/id/metropolitan-district-council/wolverhampton","Investments","LUL Ticket Machine","12/05/16","20.00","0.00","Public transport","4112"
"Wolverhampton City Council","http://opendatacommunities.org/id/metropolitan-district-council/wolverhampton","Investments","Pret A Manger","12/05/16","2.71","0.00","Subsistence","5812"
"Wolverhampton City Council","http://opendatacommunities.org/id/metropolitan-district-council/wolverhampton","Investments","Pret A Manger","12/05/16","2.99","0.00","Subsistence","5812"
"Wolverhampton City Council","http://opendatacommunities.org/id/metropolitan-district-council/wolverhampton","Investments","Natwest Bank","03/05/16","10.00","0.00","Subscriptions","6012"
"Wolverhampton City Council","http://opendatacommunities.org/id/metropolitan-district-council/wolverhampton","Investments","Cash Advance Fee","03/05/16","2.95","0.00","Subscriptions","6012"
"Wolverhampton City Council","http://opendatacommunities.org/id/metropolitan-district-council/wolverhampton","Governance","Sainsburys","04/05/16","25.60","0.00","Subsistence","5411"
"Wolverhampton City Council","http://opendatacommunities.org/id/metropolitan-district-council/wolverhampton","Governance","Greggs","04/05/16","60.60","0.00","Subsistence","5812"
"Wolverhampton City Council","http://opendatacommunities.org/id/metropolitan-district-council/wolverhampton","Governance","Greggs","05/05/16","132.70","0.00","Subsistence","5812"
"Wolverhampton City Council","http://opendatacommunities.org/id/metropolitan-district-council/wolverhampton","Governance","Greggs","05/05/16","76.50","0.00","Subsistence","5812"
"Wolverhampton City Council","http://opendatacommunities.org/id/metropolitan-district-council/wolverhampton","Governance","Greggs","05/05/16","9.60","0.00","Subsistence","5812"
"Wolverhampton City Council","http://opendatacommunities.org/id/metropolitan-district-council/wolverhampton","Investments","Strada London","12/05/16","22.60","0.00","Subsistence","5812"
"Wolverhampton City Council","http://opendatacommunities.org/id/metropolitan-district-council/wolverhampton","Governance","Greggs","09/05/16","60.60","0.00","Subsistence","5812"
"Wolverhampton City Council","http://opendatacommunities.org/id/metropolitan-district-council/wolverhampton","Executive","Waitrose","20/03/16","37.65","0.00","Subsistence","5411"
"Wolverhampton City Council","http://opendatacommunities.org/id/metropolitan-district-council/wolverhampton","Governance","Sainsburys","12/05/16","20.30","0.00","Subsistence","5411"
"Wolverhampton City Council","http://opendatacommunities.org/id/metropolitan-district-council/wolverhampton","Governance","Greggs","13/05/16","74.60","0.00","Subsistence","5812"
"Wolverhampton City Council","http://opendatacommunities.org/id/metropolitan-district-council/wolverhampton","Governance","Sainsburys","22/05/16","5.50","0.00","Subsistence","5411"
"Wolverhampton City Council","http://opendatacommunities.org/id/metropolitan-district-council/wolverhampton","Governance","Trainline","23/05/16","26.16","0.00","Public transport","4112"
"Wolverhampton City Council","http://opendatacommunities.org/id/metropolitan-district-council/wolverhampton","Governance","Trainline","23/05/16","6.68","0.00","Public transport","4112"
"Wolverhampton City Council","http://opendatacommunities.org/id/metropolitan-district-council/wolverhampton","Governance","Trainline","23/05/16","56.61","0.00","Public transport","4112"
"Wolverhampton City Council","http://opendatacommunities.org/id/metropolitan-district-council/wolverhampton","Governance","Trainline","23/05/16","92.82","0.00","Public transport","4112"
"Wolverhampton City Council","http://opendatacommunities.org/id/metropolitan-district-council/wolverhampton","Governance","Trainline","23/05/16","184.11","0.00","Public transport","4112"
"Wolverhampton City Council","http://opendatacommunities.org/id/metropolitan-district-council/wolverhampton","Governance","Greggs","23/05/16","27.95","0.00","Subsistence","5812"
"Wolverhampton City Council","http://opendatacommunities.org/id/metropolitan-district-council/wolverhampton","Governance","West Coast Trains","23/05/16","30.00","0.00","Public transport","4112"
"Wolverhampton City Council","http://opendatacommunities.org/id/metropolitan-district-council/wolverhampton","Executive","Waitrose","20/03/16","0.04","0.00","Equipment - Purchase","5411"
"Wolverhampton City Council","http://opendatacommunities.org/id/metropolitan-district-council/wolverhampton","Governance","Sainsburys","02/06/16","23.44","0.00","Subsistence","5411"
"Wolverhampton City Council","http://opendatacommunities.org/id/metropolitan-district-council/wolverhampton","Governance","Greggs","02/06/16","60.70","0.00","Subsistence","5812"
"Wolverhampton City Council","http://opendatacommunities.org/id/metropolitan-district-council/wolverhampton","Governance","Financial Times","17/05/16","(520.00)","0.00","Subscriptions","5192"
"Wolverhampton City Council","http://opendatacommunities.org/id/metropolitan-district-council/wolverhampton","Governance","Financial Times LTD","17/05/16","(520.00)","0.00","Subscriptions","5192"
"Wolverhampton City Council","http://opendatacommunities.org/id/metropolitan-district-council/wolverhampton","Governance","Financial Times LTD","17/05/16","(520.00)","0.00","Subscriptions","5192"
"Wolverhampton City Council","http://opendatacommunities.org/id/metropolitan-district-council/wolverhampton","Finance","WP-TVCABLES NIMBUS","19/04/16","71.35","0.00","Equipment - Purchase","5072"
"Wolverhampton City Council","http://opendatacommunities.org/id/metropolitan-district-council/wolverhampton","Governance","ISSUU","27/05/16","13.32","0.00","Computing - Internet","4816"
"Wolverhampton City Council","http://opendatacommunities.org/id/metropolitan-district-council/wolverhampton","Finance","GRO HM Passport Office Southport","31/05/16","18.50","0.00","Publications","9399"
"Wolverhampton City Council","http://opendatacommunities.org/id/metropolitan-district-council/wolverhampton","Finance","Costa Coffee","10/05/16","8.58","0.00","Subsistence","5813"
"Wolverhampton City Council","http://opendatacommunities.org/id/metropolitan-district-council/wolverhampton","Finance","LUL Ticket Machine","10/05/16","50.00","0.00","Public transport","4112"
"Wolverhampton City Council","http://opendatacommunities.org/id/metropolitan-district-council/wolverhampton","Finance","Eat Ltd","10/05/16","2.00","0.00","Subsistence","5812"
"Wolverhampton City Council","http://opendatacommunities.org/id/metropolitan-district-council/wolverhampton","Finance","Pret A Manger","10/05/16","1.87","0.00","Subsistence","5812"
"Wolverhampton City Council","http://opendatacommunities.org/id/metropolitan-district-council/wolverhampton","Finance","Pret A Manger","10/05/16","1.99","0.00","Subsistence","5812"
"Wolverhampton City Council","http://opendatacommunities.org/id/metropolitan-district-council/wolverhampton","Finance","West Coast Trains","10/05/16","170.00","0.00","Public transport","4112"
"Wolverhampton City Council","http://opendatacommunities.org/id/metropolitan-district-council/wolverhampton","Finance","WWW.HEADSETCO.CO.UK","14/04/16","193.14","0.00","Equipment - Purchase","5072"
